bitfinex-derivatives/quotes_SOLF0:USTF0_20250928
["timestamp","ask_amount","ask_price","bid_price","bid_amount"]
[1759072023538,8.0,202.32,202.23,11.9579]
[1759072023839,1.23562229,202.31,202.23,11.9579]
[1759072024136,1.23562229,202.3,202.23,11.9579]
[1759072024336,4.4455,202.35,202.26,7.51]
[1759072024538,1.235594,202.34,202.26,7.51]
[1759072024729,13.681694,202.33,202.22,7.51]
[1759072024934,1.235594,202.32,202.22,7.51]
[1759072025233,9.235594,202.31,202.22,7.51]
[1759072025434,1.235594,202.3,202.22,7.51]
[1759072025736,1.235594,202.3,202.24,7.51]
[1759072025930,8.0,202.34,202.24,11.9577]
[1759072026131,1.23564057,202.33,202.24,11.9577]
[1759072026342,1.23564057,202.32,202.24,11.9577]
[1759072026542,1.23564057,202.31,202.24,11.9577]
[1759072026743,1.23564057,202.3,202.24,7.51]
[1759072027042,8.0,202.32,202.23,7.51]
[1759072028035,8.0,202.37,202.27,4.4471]
[1759072028238,1.23556209,202.36,202.26,7.51]
[1759072028436,1.23556209,202.35,202.26,7.51]
[1759072028634,1.23556209,202.34,202.29,4.4468]
[1759072028831,12.445,202.37,202.29,11.9568]
[1759072029031,1.23546774,202.36,202.29,11.9568]
[1759072029835,1.23546774,202.35,202.29,7.51]
[1759072030039,9.23546774,202.34,202.26,4.4473]
[1759072030338,8.0,202.34,202.25,7.51]
[1759072030544,1.23553314,202.33,202.27,4.4471]
[1759072031043,8.0,202.34,202.27,4.4471]
[1759072031245,1.23558012,202.33,202.27,4.4471]
[1759072032543,1.23558012,202.33,202.25,11.9576]
[1759072032844,9.16558012,202.32,202.21,7.58]
[1759072033038,1.23558012,202.31,202.21,7.58]
[1759072033642,1.23558012,202.31,202.23,4.4481]
[1759072034244,1.75206861,202.3,202.23,4.4481]
[1759072034835,1.75206861,202.3,202.24,4.4477]
[1759072035446,1.75206861,202.3,202.21,7.58]
[1759072035745,1.75206861,202.3,202.21,12.0284]
[1759072035948,1.75206861,202.3,202.21,7.58]
[1759072036134,1.75206861,202.3,202.22,4.4482]
[1759072036340,12.3763,202.32,202.22,4.4482]
[1759072036637,1.23579566,202.31,202.22,4.4482]
[1759072036834,5.68229566,202.31,202.22,4.4482]
[1759072037146,7.93,202.29,202.21,7.58]
[1759072037342,4.4471,202.28,202.21,7.58]
[1759072038046,7.93,202.26,202.2,4.4487]
[1759072038246,7.93,202.26,202.18,4.4491]
[1759072038848,7.93,202.26,202.19,4.4488]
[1759072039143,19.30462056,202.32,202.19,4.4488]
[1759072039144,7.93,202.33,202.21,7.58]
[1759072039448,1.23582149,202.32,202.23,4.448]
[1759072039647,4.4463,202.31,202.23,4.448]
[1759072039947,9.16582149,202.3,202.23,4.448]
[1759072040136,7.93,202.3,202.25,7.58]
[1759072041147,7.93,202.35,202.25,76.7655]
[1759072041347,1.23572955,202.34,202.26,76.7622]
[1759072041548,4.4448,202.38,202.3,4.4464]
[1759072041849,1.23558986,202.37,202.3,4.4464]
[1759072046549,3.40239987,202.36,202.3,4.4464]
[1759072046851,4.4448,202.38,202.3,4.4464]
[1759072047050,4.63786241,202.37,202.3,4.4464]
[1759072047248,4.63786241,202.36,202.3,4.4464]
[1759072047551,4.4448,202.38,202.3,4.4464]
[1759072047745,4.63834771,202.37,202.3,4.4464]
[1759072047944,4.63834771,202.36,202.3,4.4464]
[1759072048147,4.4448,202.38,202.3,4.4464]
[1759072048348,9.08373685,202.37,202.28,4.447]
[1759072048549,4.63843685,202.36,202.28,4.447]
[1759072048742,3.40300193,202.35,202.28,4.447]
[1759072048946,4.4453,202.37,202.28,4.447]
[1759072049248,4.63863182,202.36,202.28,4.447]
[1759072049449,3.40314956,202.35,202.28,4.447]
[1759072053651,1.23552393,202.34,202.28,4.447]
[1759072054053,12.1355,202.36,202.28,4.447]
[1759072054351,4.64280923,202.35,202.28,4.447]
[1759072054656,4.64280923,202.34,202.28,4.447]
[1759072054859,12.1355,202.36,202.28,4.447]
[1759072055151,4.4457,202.34,202.27,7.58]
[1759072055348,3.40730428,202.33,202.27,7.58]
[1759072058259,1.23563502,202.32,202.26,4.4475]
[1759072058562,6.19703205,202.34,202.27,12.0172]
[1759072058757,3.40885953,202.33,202.27,7.57]
[1759072058957,9.44133205,202.36,202.27,7.57]
[1759072059158,4.64400901,202.35,202.27,7.57]
[1759072059357,4.64400901,202.34,202.27,7.57]
[1759072059560,9.44133205,202.36,202.3,4.4464]
[1759072059753,9.44133205,202.36,202.27,7.57]
[1759072059754,4.64431103,202.35,202.27,7.57]
[1759072059954,4.64431103,202.34,202.27,7.57]
[1759072060252,3.40882944,202.33,202.27,7.57]
[1759072060449,9.44133205,202.36,202.27,7.57]
[1759072060654,4.64537238,202.35,202.28,4.4469]
[1759072060961,4.64537238,202.34,202.28,4.4469]
[1759072061152,4.64537238,202.33,202.29,7.57]
[1759072061352,3.4098013,202.32,202.3,7.57]
[1759072061553,9.44133205,202.36,202.3,7.57]
[1759072061853,12.33607092,202.35,202.3,7.57]
[1759072062053,4.64607092,202.34,202.3,7.57]
[1759072062250,4.64607092,202.33,202.3,7.57]
[1759072062561,4.64607092,202.32,202.3,7.57]
[1759072062758,9.44133205,202.36,202.3,7.57]
[1759072062954,69.1378,202.4,202.27,12.0173]
[1759072062955,7.69,202.33,202.27,12.0173]
[1759072063154,12.33681744,202.32,202.27,12.0173]
[1759072063360,12.33690745,202.31,202.27,12.0173]
[1759072063549,7.69,202.31,202.27,12.0173]
[1759072063754,4.64822502,202.3,202.27,7.57]
[1759072063954,7.69,202.31,202.27,7.57]
[1759072064254,4.6483474,202.3,202.27,7.57]
[1759072064553,4.6483474,202.29,202.27,7.57]
[1759072064756,1.75133205,202.3,202.27,7.57]
[1759072064956,4.64950365,202.29,202.27,7.57]
[1759072065160,1.75133205,202.3,202.27,7.57]
[1759072065356,4.64956382,202.29,202.27,7.57]
[1759072065561,1.75133205,202.3,202.27,7.57]
[1759072065858,4.64956548,202.29,202.27,7.57]
[1759072066059,1.75133205,202.3,202.27,7.57]
[1759072066259,4.6496273,202.29,202.27,7.57]
[1759072066460,1.75133205,202.3,202.27,7.57]
[1759072066659,4.64949164,202.29,202.27,7.57]
[1759072066862,1.75133205,202.3,202.27,7.57]
[1759072067059,4.6494908,202.29,202.27,7.57]
[1759072067258,1.75133205,202.3,202.27,7.57]
[1759072067453,4.64942333,202.29,202.27,7.57]
[1759072067660,1.75133205,202.3,202.27,7.57]
[1759072067867,4.64942333,202.29,202.27,7.57]
[1759072068059,1.75133205,202.32,202.23,9.32133205]
[1759072068366,12.1346,202.4,202.33,4.4459]
[1759072068666,1.23541674,202.39,202.33,4.4459]
[1759072068869,1.23541674,202.38,202.34,7.57]
[1759072069055,1.23541674,202.37,202.33,4.4459]
[1759072069260,1.23541674,202.36,202.34,7.57]
[1759072069460,12.1346,202.4,202.34,7.57]
[1759072069661,8.92531268,202.39,202.33,12.0159]
[1759072069964,1.23531268,202.38,202.32,7.57]
[1759072070162,1.23531268,202.37,202.33,69.1612]
[1759072070362,0.42539272,202.42,202.35,7.57]
[1759072070568,1.23509827,202.41,202.35,7.57]
[1759072071356,0.42539272,202.42,202.35,7.57]
[1759072071564,1.23510616,202.41,202.35,7.57]
[1759072071867,1.23510616,202.4,202.32,7.57]
[1759072072069,1.23510616,202.39,202.32,7.57]
[1759072072263,8.11539272,202.42,202.32,7.57]
[1759072072461,1.23519113,202.41,202.32,7.57]
[1759072072662,1.23519113,202.41,202.35,7.57]
[1759072072863,14.09909,202.46,202.35,7.57]
[1759072073065,1.23504646,202.45,202.35,7.57]
[1759072073270,1.23504646,202.44,202.36,4.4453]
[1759072073570,1.23504646,202.43,202.36,4.4453]
[1759072073762,1.23504646,202.42,202.36,4.4453]
[1759072073962,18.54219,202.46,202.37,4.4449]
[1759072074170,1.23501281,202.45,202.37,4.4449]
[1759072074368,1.23501281,202.44,202.38,7.74]
[1759072074572,1.23501281,202.43,202.37,12.1849]
[1759072074764,14.09909,202.46,202.38,4.4447]
[1759072075069,1.23500373,202.45,202.38,4.4447]
[1759072076267,1.23500373,202.45,202.39,7.74]
[1759072077569,1.23500373,202.45,202.39,12.1844]
[1759072078665,1.23500373,202.45,202.39,4.4444]
[1759072078867,1.23500373,202.45,202.4,7.74]
[1759072079064,1.23500373,202.45,202.39,4.4444]
[1759072079459,6.40909,202.46,202.41,4.4441]
[1759072080364,6.40909,202.46,202.43,7.74]
[1759072080567,6.40909,202.46,202.36,122.86]
[1759072080568,6.40909,202.46,202.3,69.1685]
[1759072080764,6.40909,202.46,202.36,7.74]
[1759072081165,6.40909,202.46,202.39,12.1846]
[1759072081370,1.23493074,202.45,202.39,12.1846]
[1759072081566,6.40909,202.46,202.39,12.1846]
[1759072083370,6.40909,202.46,202.39,7.74]
[1759072083562,318.0,202.62,202.39,7.74]
[1759072083563,12.94150135,202.57,202.43,71.85968848]
[1759072083767,1.23446731,202.56,202.47,7.74]
[1759072083971,7.47,202.57,202.47,4.4429]
[1759072084174,7.47,202.57,202.48,7.74]
[1759072084676,7.47,202.61,202.52,7.74]
[1759072086871,2.73378848,202.59,202.47,7.74]
[1759072087075,7.47,202.58,202.47,7.74]
[1759072087476,7.47,202.58,202.49,4.4425]
[1759072091574,7.41,202.56,202.44,7.44]
[1759072091775,2.73378848,202.54,202.44,7.44]
[1759072091976,7.41,202.53,202.44,7.44]
[1759072094682,4.442,202.51,202.44,7.44]
[1759072098282,7.41,202.53,202.44,11.8836]
[1759072098473,7.41,202.53,202.45,7.44]
[1759072098879,11.8519,202.53,202.45,7.44]
[1759072102592,74.53390135,202.62,202.45,2.73378848]
[1759072102788,7.41,202.59,202.48,2.73378848]
[1759072103091,7.41,202.59,202.49,7.44]
[1759072103695,7.41,202.59,202.51,2.73378848]
[1759072103895,7.41,202.59,202.52,7.73]
[1759072105089,4.4399,202.62,202.53,4.4415]
[1759072105290,4.4399,202.62,202.54,7.73]
[1759072105594,4.4401,202.61,202.54,7.73]
[1759072106099,8.0,202.58,202.46,7.73]
[1759072106290,8.0,202.58,202.49,7.73]
[1759072106590,8.0,202.58,202.49,12.1726]
[1759072107192,8.0,202.63,202.51,2.73378848]
[1759072107392,8.0,202.63,202.52,7.73]
[1759072107592,7.44,202.63,202.52,7.73]
[1759072107990,4.4397,202.62,202.52,12.1717]
[1759072109896,4.4397,202.62,202.54,4.4415]
[1759072110988,79.79338848,202.63,202.52,7.73]
[1759072111595,8.0,202.61,202.52,7.73]
[1759072112592,4.4405,202.59,202.52,7.73]
[1759072112898,8.0,202.61,202.52,7.73]
[1759072113294,4.4403,202.6,202.52,7.73]
[1759072115494,8.0,202.61,202.52,7.73]
[1759072115695,8.0,202.58,202.46,7.73]
[1759072115902,8.0,202.56,202.46,7.73]
[1759072116198,10.73378848,202.56,202.46,7.73]
[1759072116598,133.47378848,202.56,202.46,7.73]
[1759072116794,4.4421,202.52,202.46,7.73]
[1759072118691,12.4423,202.51,202.46,7.73]
[1759072119601,8.0,202.51,202.44,4.4435]
[1759072119802,8.0,202.51,202.45,7.73]
[1759072120893,8.0,202.51,202.42,4.444]
[1759072121701,12.4423,202.51,202.42,4.444]
[1759072122905,12.4423,202.51,202.44,7.73]
[1759072123307,4.4423,202.51,202.44,7.73]
[1759072123501,12.4423,202.51,202.44,7.73]
[1759072126107,4.4425,202.5,202.44,7.73]
[1759072126304,69.0977,202.52,202.4,12.1745]
[1759072126501,8.0,202.51,202.4,12.1745]
[1759072127009,8.0,202.5,202.4,12.1745]
[1759072127603,8.0,202.5,202.41,4.4441]
[1759072128006,8.0,202.5,202.4,7.73]
[1759072128409,4.4427,202.49,202.42,4.4439]
[1759072129313,4.4427,202.49,202.43,7.73]
[1759072129503,8.0,202.59,202.48,7.73]
[1759072129914,8.0,202.59,202.49,4.46482228]
[1759072130114,8.0,202.59,202.51,7.73]
[1759072130414,8.0,202.59,202.52,4.46482228]
[1759072130617,8.0,202.59,202.53,4.46482228]
[1759072130813,4.4403,202.6,202.54,4.46482228]
[1759072131013,12.4403,202.6,202.52,4.4419]
[1759072131610,12.4403,202.6,202.51,7.73]
[1759072131915,12.4403,202.6,202.52,4.39749036]
[1759072132114,12.4403,202.6,202.53,4.39749036]
[1759072132410,4.4405,202.59,202.54,4.39749036]
[1759072132711,8.0,202.58,202.55,4.39749036]
[1759072132916,8.0,202.57,202.51,7.73]
[1759072133216,1.74688816,202.56,202.47,4.4429]
[1759072133709,1.74688816,202.54,202.46,9.47688816]
[1759072133904,7.89,202.54,202.46,9.47688816]
[1759072135315,7.89,202.54,202.46,12.173]
[1759072137805,12.3316,202.54,202.46,12.173]
[1759072140020,4.4425,202.5,202.38,5.47618334]
[1759072140315,7.89,202.48,202.38,8.11]
[1759072140720,12.333,202.48,202.38,8.11]
[1759072141019,1.74688816,202.47,202.38,8.11]
[1759072141213,1.74688816,202.47,202.4,4.4445]
[1759072141715,7.89,202.48,202.41,8.11]
[1759072143213,7.89,202.52,202.43,8.11]
[1759072144619,7.89,202.52,202.43,12.5538]
[1759072144818,7.89,202.52,202.43,8.11]
[1759072144819,1.74688816,202.5,202.43,8.11]
[1759072145118,7.89,202.49,202.38,102.32688816]
[1759072145320,1.74688816,202.48,202.39,8.11]
[1759072146323,7.89,202.47,202.4,4.4443]
[1759072147620,7.89,202.51,202.42,4.444]
[1759072147818,1.74688816,202.49,202.42,12.554]
[1759072149023,7.89,202.51,202.42,12.554]
[1759072149226,1.74688816,202.49,202.42,12.554]
[1759072151819,1.74688816,202.53,202.42,9.85688816]
[1759072152124,1.74688816,202.53,202.45,7.85]
[1759072153523,9.25688816,202.55,202.45,7.85]
[1759072153724,1.23437907,202.54,202.45,7.85]
[1759072154021,1.23437907,202.54,202.45,12.2934]
[1759072155324,5.67597907,202.54,202.45,12.2934]
[1759072155624,1.23437907,202.53,202.45,12.2934]
[1759072156528,2.98126723,202.53,202.45,14.04028816]
[1759072156731,1.74688816,202.53,202.45,14.04028816]
[1759072157738,122.76,202.57,202.49,7.85]
[1759072157739,6.18778816,202.57,202.49,7.85]
[1759072158029,1.23428965,202.56,202.49,7.85]
[1759072159630,1.23428965,202.56,202.49,12.2923]
[1759072159832,5.67538965,202.56,202.49,7.85]
[1759072160024,1.23428965,202.55,202.49,7.85]
[1759072164338,1.23428965,202.55,202.49,12.2924]
[1759072165238,1.23428965,202.55,202.49,14.03928816]
[1759072165533,122.74,202.59,202.52,7.38]
[1759072165534,1.74688816,202.59,202.52,7.38]
[1759072165729,1.23411209,202.58,202.52,7.38]
[1759072166331,1.2341167,202.57,202.52,7.38]
[1759072166532,6.18738816,202.59,202.52,7.38]
[1759072166733,4.881698,202.58,202.51,13.56878816]
[1759072167042,4.881698,202.57,202.51,13.56878816]
[1759072167328,3.6475813,202.56,202.52,7.38]
[1759072167635,3.6475813,202.55,202.51,6.18878816]
[1759072167834,3.6475813,202.54,202.52,7.38]
[1759072168133,6.18738816,202.59,202.52,7.38]
[1759072168434,4.88100232,202.58,202.52,7.38]
[1759072168631,3.6468854,202.57,202.51,6.18878816]
[1759072168825,3.6468854,202.56,202.51,6.18878816]
[1759072169025,3.6468854,202.55,202.51,6.18878816]
[1759072169230,3.6468854,202.54,202.52,7.38]
[1759072169425,6.18738816,202.59,202.52,7.38]
[1759072169635,4.88043639,202.58,202.52,7.38]
[1759072169834,3.64631967,202.57,202.51,6.18878816]
[1759072170036,3.64631967,202.56,202.51,6.18878816]
[1759072170237,3.64631967,202.55,202.51,6.18878816]
[1759072170536,3.64631967,202.54,202.53,7.38]
[1759072171233,4.4405,202.59,202.53,7.38]
[1759072171537,4.87969412,202.58,202.52,11.8217]
[1759072171739,3.64559652,202.57,202.52,4.4417]
[1759072171930,3.64559652,202.56,202.53,7.38]
[1759072172134,3.64559652,202.55,202.53,7.38]
[1759072172336,13.73758816,202.58,202.53,7.38]
[1759072172535,3.64553785,202.57,202.53,7.38]
[1759072172840,3.64553785,202.56,202.53,7.38]
[1759072173034,3.64553785,202.55,202.53,7.38]
[1759072173234,13.73758816,202.58,202.53,7.38]
[1759072173436,3.64553222,202.57,202.53,7.38]
[1759072173635,3.64553222,202.56,202.53,7.38]
[1759072173935,3.64553222,202.55,202.53,7.38]
[1759072174234,13.73758816,202.58,202.53,7.38]
[1759072174434,3.64558217,202.57,202.53,7.38]
[1759072174634,3.64558217,202.56,202.53,7.38]
[1759072174836,3.64558217,202.55,202.53,7.38]
[1759072175037,13.73758816,202.58,202.53,7.38]
[1759072175240,3.64553002,202.57,202.53,7.38]
[1759072175539,3.64553002,202.56,202.52,7.38]
[1759072175837,3.64553002,202.55,202.53,7.38]
[1759072176038,3.64553002,202.54,202.53,7.38]
[1759072177245,3.64553002,202.54,202.52,4.4418]
[1759072177246,17.38381818,202.54,202.46,7.38]
[1759072177433,3.64553002,202.53,202.46,7.38]
[1759072177633,3.64553002,202.52,202.46,7.38]
[1759072177832,3.64553002,202.51,202.45,7.38]
[1759072178036,3.64553002,202.5,202.44,9.12688816]
[1759072178342,1.74688816,202.52,202.44,9.12688816]
[1759072178637,11.19708944,202.51,202.46,11.823]
[1759072178941,3.64708944,202.5,202.46,11.823]
[1759072179239,7.55,202.51,202.47,7.38]
[1759072179440,3.64711291,202.5,202.46,4.443]
[1759072179638,7.55,202.51,202.46,4.443]
[1759072179938,3.64702548,202.5,202.46,4.443]
[1759072180140,1.74688816,202.52,202.47,4.4428]
[1759072180337,3.64696513,202.51,202.48,7.38]
[1759072180538,13.73848816,202.54,202.48,7.38]
[1759072180739,7.55,202.52,202.48,7.38]
[1759072180936,3.64696443,202.51,202.48,7.38]
[1759072181135,7.55,202.52,202.48,7.38]
[1759072181336,3.6471739,202.51,202.48,7.38]
[1759072181536,7.55,202.52,202.48,7.38]
[1759072181738,3.64699146,202.51,202.48,7.38]
[1759072182042,7.55,202.52,202.48,7.38]
[1759072182339,3.6472004,202.51,202.48,7.38]
[1759072182543,7.55,202.52,202.48,7.38]
[1759072182842,3.64719277,202.51,202.48,7.38]
[1759072183038,3.64719277,202.5,202.48,7.38]
[1759072183246,7.55,202.52,202.48,7.38]
[1759072183247,3.64726607,202.49,202.48,7.38]
[1759072183439,3.64726607,202.49,202.47,4.4428]
[1759072183634,1.74688816,202.5,202.45,4.4433]
[1759072183833,11.19730476,202.49,202.42,7.38]
[1759072184040,5.39419292,202.48,202.42,7.38]
[1759072184240,1.74688816,202.48,202.42,7.38]
[1759072184641,1.74688816,202.48,202.42,11.8238]
[1759072185835,7.55,202.47,202.42,11.8238]
[1759072186041,9.29688816,202.48,202.42,11.8238]
[1759072187548,1.74688816,202.48,202.39,1.74688816]
[1759072187739,7.55,202.42,202.38,7.38]
[1759072187944,3.64880387,202.47,202.28,69.1757]
[1759072187945,12.94690297,202.41,202.3,7.38]
[1759072188239,3.65001481,202.4,202.3,7.38]
[1759072188441,3.65001481,202.39,202.32,7.38]
[1759072188636,9.29688816,202.41,202.33,4.4459]
[1759072188842,3.64865601,202.4,202.33,1.74688816]
[1759072189041,7.55,202.41,202.34,7.38]
[1759072189243,3.64677719,202.4,202.35,4.4454]
[1759072189443,7.55,202.41,202.35,11.8254]
[1759072189643,3.64677891,202.4,202.36,7.38]
[1759072189852,7.55,202.41,202.35,11.8254]
[1759072190052,3.64677613,202.4,202.36,7.38]
[1759072190347,7.55,202.41,202.36,7.38]
[1759072190549,1.74688816,202.42,202.34,7.38]
[1759072190850,1.74688816,202.44,202.34,9.12688816]
[1759072191149,3.6454466,202.43,202.37,7.38]
[1759072191351,9.29688816,202.45,202.37,7.38]
[1759072191542,3.64410996,202.44,202.37,7.38]
[1759072191742,3.64410996,202.43,202.37,11.825]
[1759072191950,9.29688816,202.45,202.37,11.825]
[1759072192248,3.64411413,202.44,202.39,1.74688816]
[1759072192448,1.74688816,202.48,202.4,7.38]
[1759072192647,3.64358103,202.47,202.4,7.38]
[1759072192946,3.64358103,202.46,202.4,7.38]
[1759072193146,3.64358103,202.45,202.39,9.12688816]
[1759072193449,1.74688816,202.48,202.39,9.12688816]
[1759072193749,7.45,202.45,202.36,1.74688816]
[1759072193943,7.45,202.43,202.36,1.74688816]
[1759072194448,7.45,202.43,202.35,4.4456]
[1759072195745,3.64299719,202.42,202.35,4.4456]
[1759072195945,7.45,202.43,202.35,4.4456]
[1759072196143,3.64299708,202.42,202.35,4.4456]
[1759072196343,7.45,202.43,202.35,4.4456]
[1759072196547,3.6421123,202.42,202.35,4.4456]
[1759072196746,7.45,202.43,202.35,4.4456]
[1759072197851,7.45,202.43,202.37,7.84]
[1759072198352,73.03,202.49,202.37,7.84]
[1759072198556,7.45,202.47,202.39,4.4445]
[1759072198852,3.60098634,202.46,202.39,4.4445]
[1759072199155,7.45,202.47,202.39,4.4445]
[1759072199356,3.60055992,202.46,202.39,4.4445]
[1759072199652,7.45,202.47,202.39,4.4445]
[1759072199854,3.60055992,202.46,202.39,4.4445]
[1759072200051,7.45,202.47,202.39,4.4445]
[1759072200248,3.60023828,202.46,202.39,4.4445]
[1759072200554,7.45,202.47,202.4,7.84]
[1759072200761,11.8923,202.51,202.4,7.84]
[1759072200949,3.59953833,202.5,202.4,7.84]
[1759072201255,11.8923,202.51,202.43,4.4438]
[1759072201453,7.45,202.49,202.36,7.84]
[1759072201649,7.45,202.46,202.36,7.84]
[1759072201854,3.59917054,202.45,202.36,7.84]
[1759072202846,7.45,202.44,202.36,7.84]
[1759072203049,7.45,202.44,202.32,7.84]
[1759072203357,3.59963973,202.43,202.32,7.84]
[1759072203650,7.45,202.44,202.32,7.84]
[1759072203844,3.59971232,202.43,202.32,7.84]
[1759072204051,7.45,202.44,202.32,7.84]
[1759072204249,3.59947713,202.43,202.32,7.84]
[1759072204444,7.45,202.44,202.32,7.84]
[1759072204649,8.04319791,202.43,202.35,5.1705156]
[1759072204949,4.4441,202.43,202.35,5.1705156]
[1759072206048,4.4441,202.43,202.35,0.7250156]
[1759072206451,7.45,202.42,202.35,0.7250156]
[1759072207556,7.45,202.42,202.28,7.84]
[1759072207557,7.45,202.37,202.28,7.84]
[1759072208352,7.45,202.37,202.29,69.1764]
[1759072208653,7.45,202.43,202.31,71.90213897]
[1759072208848,3.59709046,202.42,202.33,7.84]
[1759072209149,7.45,202.43,202.33,7.84]
[1759072209150,7.45,202.43,202.36,4.4453]
[1759072209356,3.59659348,202.42,202.36,4.4453]
[1759072209555,7.45,202.43,202.36,4.4453]
[1759072211154,11.894,202.43,202.33,12.286]
[1759072211355,7.63,202.41,202.33,12.286]
[1759072211753,7.63,202.41,202.34,4.4457]
[1759072211961,7.63,202.38,202.29,7.46]
[1759072213560,7.63,202.38,202.32,4.4463]
[1759072214159,7.63,202.38,202.33,4.446]
[1759072214561,7.63,202.38,202.34,7.46]
[1759072214755,2.73383897,202.41,202.34,7.46]
[1759072215357,7.63,202.42,202.35,4.4457]
[1759072216056,3.59690747,202.41,202.35,4.4457]
[1759072216254,7.63,202.42,202.35,4.4457]
[1759072216456,3.59690802,202.41,202.34,7.46]
[1759072216658,12.0743,202.42,202.34,7.46]
[1759072218550,12.0743,202.42,202.34,11.9058]
[1759072219159,3.59978427,202.41,202.36,7.46]
[1759072219357,7.63,202.47,202.36,7.46]
[1759072219559,3.59890811,202.46,202.36,7.46]
[1759072219858,3.59890811,202.45,202.36,7.46]
[1759072220063,7.63,202.47,202.36,7.46]
[1759072220364,3.6001531,202.46,202.36,7.46]
[1759072220559,3.6001531,202.45,202.39,4.4446]
[1759072220753,7.63,202.47,202.36,7.46]
[1759072220957,3.60048773,202.46,202.36,7.46]
[1759072221159,3.60048773,202.45,202.36,7.46]
[1759072221460,11.23240931,202.44,202.36,7.46]
[1759072221655,7.63,202.44,202.36,7.46]
[1759072222156,3.60412376,202.43,202.36,7.46]
[1759072222360,7.63,202.44,202.36,7.46]
[1759072222556,3.60458645,202.43,202.36,7.46]
[1759072222757,7.63,202.44,202.36,7.46]
[1759072222964,3.60458645,202.43,202.36,7.46]
[1759072223268,7.63,202.44,202.36,7.46]
[1759072223769,7.63,202.44,202.38,4.445]
[1759072225163,3.60715558,202.43,202.38,4.445]
[1759072225371,7.54,202.43,202.38,12.265]
[1759072226465,11.9837,202.45,202.34,7.82]
[1759072226769,7.54,202.43,202.34,7.82]
[1759072227671,7.54,202.43,202.36,4.4453]
[1759072229075,3.51882701,202.42,202.36,4.4453]
[1759072229372,7.54,202.43,202.36,4.4453]
[1759072229572,3.51900174,202.42,202.36,4.4453]
[1759072229772,7.54,202.43,202.36,4.4453]
[1759072229970,3.51900174,202.42,202.36,4.4453]
[1759072230174,3.52017567,202.41,202.36,4.4453]
[1759072230472,7.54,202.43,202.36,4.4453]
[1759072230663,3.52017781,202.42,202.36,4.4453]
[1759072230862,3.52017781,202.41,202.36,4.4453]
[1759072231071,7.54,202.44,202.36,4.4453]
[1759072231272,7.54,202.42,202.36,4.4453]
[1759072231468,3.52143804,202.41,202.36,4.4453]
[1759072231671,7.54,202.4,202.36,4.4453]
[1759072231976,7.54,202.4,202.36,12.2653]
[1759072232275,7.54,202.4,202.37,4.4451]
[1759072232676,7.54,202.4,202.37,12.2651]
[1759072239777,7.54,202.38,202.35,4.4456]
[1759072239976,2.73383897,202.44,202.35,4.4456]
[1759072240177,2.73383897,202.41,202.28,7.82]
[1759072240373,69.1328,202.42,202.28,7.82]
[1759072240374,7.54,202.36,202.28,7.82]
[1759072240676,3.52414465,202.35,202.28,7.82]
[1759072240872,3.52414465,202.34,202.28,7.82]
[1759072241067,11.06414465,202.33,202.27,80.98]
[1759072241271,7.54,202.33,202.27,80.98]
[1759072241472,7.54,202.36,202.28,4.4471]
[1759072241671,7.54,202.34,202.28,4.4471]